bitfinex/quotes_SOLUSD_20241115
["timestamp","ask_amount","ask_price","bid_price","bid_amount"]
[1731695972754,13.61440687,210.03,209.96,13.86538687]
[1731695973068,13.61440687,210.07,210.0,37.64227087]
[1731695973375,17.89800687,210.11,210.05,0.12549]
[1731695973554,13.61440687,210.1,210.05,0.12549]
[1731695974056,13.61440687,210.11,210.05,0.25098]
[1731695974574,17.89770687,210.12,210.07,0.25098]
[1731695974871,13.61440687,210.12,210.07,0.25098]
[1731695976149,13.61440687,210.15,210.09,24.027864]
[1731695976346,13.61440687,210.16,210.1,0.09367462]
[1731695976566,13.61440687,210.17,210.1,13.70808149]
[1731695976771,13.61440687,210.18,210.12,0.09367462]
[1731695977073,0.1,210.28,210.1,0.09367462]
[1731695977074,13.61440687,210.24,210.18,23.902374]
[1731695977776,22.17577233,210.25,210.19,0.12549]
[1731695977977,16.106,210.31,210.22,0.34465462]
[1731695977978,4.2799,210.29,210.22,0.34465462]
[1731695978176,4.2799,210.29,210.24,23.776884]
[1731695978177,17.89430687,210.29,210.24,23.776884]
[1731695978469,17.89430687,210.29,210.22,24.027864]
[1731695978884,23.88558362,210.33,210.26,23.88558362]
[1731695979179,23.88558362,210.36,210.29,47.78795762]
[1731695979378,23.88558362,210.36,210.3,0.12549]
[1731695979557,23.88558362,210.37,210.3,47.78795762]
[1731695979977,23.88558362,210.34,210.27,23.88558362]
[1731695980266,23.88558362,210.35,210.28,47.91344762]
[1731695980469,23.88558362,210.35,210.29,23.776884]
[1731695981450,23.88558362,210.36,210.29,47.66246762]
[1731695981653,4.2783,210.37,210.29,47.66246762]
[1731695981654,23.88558362,210.37,210.31,23.776884]
[1731695981971,4.2778,210.39,210.31,23.776884]
[1731695981972,23.88558362,210.36,210.32,0.12549]
[1731695982372,23.88558362,210.35,210.31,0.12549]
[1731695982669,23.88558362,210.36,210.31,0.12549]
[1731695982872,23.88558362,210.32,210.22,16.5893]
[1731695983379,23.88558362,210.27,210.22,16.5893]
[1731695983568,144.7,210.36,210.23,4.85027462]
[1731695983774,23.88558362,210.29,210.23,4.85027462]
[1731695984171,23.88558362,210.26,210.22,16.5893]
[1731695984475,23.88558362,210.23,210.17,21.9215]
[1731695984875,23.88558362,210.24,210.18,0.09367462]
[1731695985075,23.88558362,210.23,210.18,0.09367462]
[1731695985660,23.88558362,210.24,210.17,62.45998362]
[1731695985982,23.88558362,210.25,210.18,23.88558362]
[1731695986789,23.88558362,210.25,210.19,4.85127462]
[1731695987086,23.88558362,210.25,210.2,23.902374]
[1731695987767,23.88558362,210.26,210.2,23.902374]
[1731695988168,23.88558362,210.26,210.21,0.21916462]
[1731695988384,23.88558362,210.28,210.23,0.12549]
[1731695988678,23.88558362,210.28,210.23,20.12549]
[1731695988883,23.88558362,210.31,210.25,0.09367462]
[1731695989057,23.88558362,210.33,210.27,0.12549]
[1731695989262,23.88558362,210.33,210.27,23.902374]
[1731695989885,23.88558362,210.32,210.27,23.902374]
[1731695990066,23.88558362,210.32,210.26,23.902374]
[1731695991689,23.88558362,210.32,210.27,0.21916462]
[1731695992003,23.88558362,210.36,210.3,23.902374]
[1731695992171,23.88558362,210.34,210.3,23.776884]
[1731695992375,23.88558362,210.34,210.27,30.51608362]
[1731695992376,23.88558362,210.34,210.29,0.12549]
[1731695992689,23.88558362,210.35,210.29,0.12549]
[1731695992874,23.88558362,210.37,210.31,24.027864]
[1731695993396,23.88558362,210.36,210.31,24.027864]
[1731695993574,23.88558362,210.36,210.31,0.09367462]
[1731695994865,23.88558362,210.39,210.33,0.21916462]
[1731695995187,23.88558362,210.42,210.36,0.12549]
[1731695995371,23.88558362,210.4,210.36,0.12549]
[1731695995573,23.88558362,210.37,210.34,23.776884]
[1731695995795,4.2765,210.45,210.33,0.25098]
[1731695995980,23.88558362,210.4,210.34,23.87055862]
[1731695996387,23.88558362,210.4,210.35,0.12549]
[1731695996575,23.88558362,210.39,210.35,0.12549]
[1731695996973,23.88558362,210.4,210.35,0.12549]
[1731695997590,23.88558362,210.4,210.35,0.25098]
[1731695997773,23.88558362,210.43,210.37,0.25098]
[1731695998380,23.88558362,210.41,210.37,0.25098]
[1731695999299,23.88558362,210.42,210.37,0.25098]
[1731695999470,23.88558362,210.43,210.38,0.21916462]
[1731695999671,23.88558362,210.44,210.39,0.12549]
[1731695999888,23.88558362,210.42,210.39,0.12549]
[1731696000282,23.88558362,210.43,210.39,0.12549]
[1731696000774,23.88558362,210.45,210.39,0.25098]
[1731696000972,28.62188882,210.46,210.4,23.776884]
[1731696002506,23.88558362,210.44,210.4,23.776884]
[1731696002674,23.88558362,210.43,210.39,0.12549]
[1731696003009,23.88558362,210.44,210.39,0.12549]
[1731696003299,23.88558362,210.45,210.4,23.776884]
[1731696003480,23.88558362,210.44,210.4,23.776884]
[1731696003874,23.88558362,210.44,210.39,23.902374]
[1731696004086,23.88558362,210.45,210.39,23.902374]
[1731696004399,28.16218362,210.45,210.39,23.902374]
[1731696004777,19.18174078,210.45,210.39,23.902374]
[1731696005198,0.4599052,210.46,210.41,0.12549]
[1731696005379,0.4599052,210.46,210.42,24.12153862]
[1731696005694,15.36504598,210.46,210.4,23.776884]
[1731696005898,14.90514078,210.44,210.4,23.776884]
[1731696006284,14.90514078,210.42,210.39,0.12549]
[1731696006482,14.90514078,210.41,210.39,0.12549]
[1731696006686,4.2769,210.44,210.38,0.34465462]
[1731696006687,14.90514078,210.42,210.38,0.34465462]
[1731696006884,4.2769,210.44,210.32,31.13644078]
[1731696007085,19.4193,210.44,210.26,22.5226]
[1731696007410,14.90514078,210.31,210.27,11.8894]
[1731696007605,144.7,210.42,210.3,0.09367462]
[1731696007799,30.0111,210.44,210.3,0.09367462]
[1731696008002,30.0111,210.44,210.34,0.09367462]
[1731696008003,14.90514078,210.4,210.34,0.09367462]
[1731696008308,15.36504598,210.46,210.38,14.90514078]
[1731696008600,4.7363052,210.46,210.39,24.027864]
[1731696008805,14.90514078,210.44,210.39,0.12549]
[1731696009005,14.90514078,210.45,210.39,0.12549]
[1731696009208,19.64144598,210.46,210.39,38.9011894]
[1731696009518,14.90514078,210.45,210.4,23.776884]
[1731696010003,14.90514078,210.45,210.39,0.21916462]
[1731696010004,14.90514078,210.45,210.39,28.74904862]
[1731696010309,19.64144598,210.46,210.39,43.6541894]
[1731696010600,0.4599052,210.46,210.41,0.09367462]
[1731696010815,0.4599052,210.46,210.43,23.902374]
[1731696011311,23.83888359,210.45,210.4,23.776884]
[1731696011480,23.83888359,210.44,210.4,23.776884]
[1731696012392,24.29878879,210.46,210.4,23.776884]
[1731696012602,0.4599052,210.46,210.42,23.83888359]
[1731696012915,0.4599052,210.46,210.43,47.96042221]
[1731696013212,0.4599052,210.46,210.45,23.902374]
[1731696013401,0.4599052,210.46,210.45,47.96042221]
[1731696013584,0.4599052,210.46,210.45,59.09232221]
[1731696014402,0.4599052,210.46,210.41,30.35708359]
[1731696014606,24.29878879,210.46,210.42,23.902374]
[1731696015204,24.29878879,210.46,210.41,23.776884]
[1731696015205,23.83888359,210.44,210.41,23.776884]
[1731696015709,28.57508879,210.46,210.4,0.12549]
[1731696016002,23.83888359,210.44,210.39,0.21916462]
[1731696016208,23.83888359,210.41,210.36,22.6701]
[1731696016513,4.7362052,210.46,210.27,23.8789]
[1731696016514,23.83888359,210.37,210.31,6.0992]
[1731696016689,23.83888359,210.36,210.31,6.0992]
[1731696016886,23.83888359,210.35,210.31,6.0992]
[1731696017194,23.83888359,210.43,210.26,6.4276]
[1731696017195,23.83888359,210.32,210.26,6.4276]
[1731696017397,23.83888359,210.31,210.24,23.83888359]
[1731696017597,23.83888359,210.31,210.25,0.09367462]
[1731696017998,23.83888359,210.32,210.25,23.93255821]
[1731696018205,23.83888359,210.32,210.24,40.48618359]
[1731696018391,4.2777,210.39,210.22,4.7567]
[1731696018392,23.83888359,210.29,210.22,4.7567]
[1731696018592,23.83888359,210.27,210.2,35.02368359]
[1731696018799,23.83888359,210.27,210.21,0.09367462]
[1731696019103,23.83888359,210.28,210.21,23.93255821]
[1731696019325,23.83888359,210.34,210.27,23.83888359]
[1731696019491,23.83888359,210.35,210.28,23.83888359]
[1731696019681,23.83888359,210.34,210.28,23.776884]
[1731696019886,23.83888359,210.34,210.29,0.12549]
[1731696020612,23.83888359,210.31,210.26,23.776884]
[1731696020829,15.0714,210.4,210.26,23.776884]
[1731696020830,23.83888359,210.33,210.27,0.34465462]
[1731696021024,23.83888359,210.34,210.29,0.12549]
[1731696021389,23.83888359,210.34,210.27,24.05804821]
[1731696021390,23.83888359,210.33,210.27,0.34465462]
[1731696022121,23.83888359,210.3,210.26,23.776884]
[1731696022323,23.83888359,210.29,210.26,23.776884]
[1731696022618,23.83888359,210.28,210.22,4.7567]
[1731696022788,23.83888359,210.3,210.22,40.48788359]
[1731696023122,23.83888359,210.32,210.26,0.09367462]
[1731696023494,4.2791,210.33,210.22,16.649]
[1731696023495,23.83888359,210.29,210.22,40.48788359]
[1731696023936,23.83888359,210.31,210.26,0.12549]
[1731696024244,28.11698359,210.37,210.31,0.12549]
[1731696024421,4.2777,210.39,210.33,23.776884]
[1731696024620,28.11658359,210.39,210.33,23.776884]
[1731696025535,23.83888359,210.38,210.32,23.776884]
[1731696025743,23.83888359,210.36,210.31,23.776884]
[1731696025924,23.83888359,210.33,210.31,23.776884]
[1731696026125,23.83888359,210.32,210.27,0.34465462]
[1731696026344,23.83888359,210.3,210.24,16.6469]
[1731696026525,23.83888359,210.32,210.26,0.09367462]
[1731696026840,23.83888359,210.33,210.28,0.09367462]
[1731696027041,23.83888359,210.31,210.28,0.09367462]
[1731696027224,23.83888359,210.29,210.24,11.8906]
[1731696027430,23.83888359,210.28,210.22,4.7567]
[1731696027632,23.83888359,210.26,210.2,11.1848]
[1731696027824,23.83888359,210.25,210.2,11.1848]
[1731696028022,23.83888359,210.25,210.2,6.4276]
[1731696028219,23.83888359,210.23,210.2,6.4276]
[1731696028522,144.7,210.34,210.21,23.93255821]
[1731696028523,23.83888359,210.28,210.21,23.93255821]
[1731696028719,30.8798,210.36,210.23,0.09367462]
[1731696028720,23.83888359,210.29,210.23,0.09367462]
[1731696029051,23.83888359,210.3,210.23,23.93255821]
[1731696029227,23.83888359,210.27,210.2,35.02368359]
[1731696029552,23.83888359,210.29,210.23,0.09367462]
[1731696029729,23.83888359,210.3,210.23,23.93255821]
[1731696029929,23.83888359,210.3,210.24,0.12549]
[1731696030137,4.2785,210.35,210.25,0.09367462]
[1731696030138,23.83888359,210.32,210.25,0.09367462]
[1731696030341,23.83888359,210.32,210.26,0.12549]
[1731696030546,23.83888359,210.32,210.26,24.027864]
[1731696030746,23.83888359,210.27,210.22,0.12549]
[1731696031046,23.83888359,210.25,210.22,23.902374]
[1731696031918,23.83888359,210.23,210.17,4.7578]
[1731696032118,23.83888359,210.2,210.16,11.8951]
[1731696032340,23.83888359,210.2,210.15,11.2688]
[1731696032341,23.83888359,210.2,210.15,6.5105]
[1731696032621,23.83888359,210.2,210.07,0.2]
[1731696032622,23.83888359,210.16,210.1,11.2699]
[1731696032942,23.83888359,210.14,210.1,6.5105]
[1731696033650,23.83888359,210.16,210.09,23.83888359]
[1731696033829,23.83888359,210.15,210.08,55.73878359]
[1731696034351,23.83888359,210.15,210.11,0.12549]
[1731696034536,23.83888359,210.12,210.08,11.9002]
[1731696034735,23.83888359,210.13,210.08,16.6602]
[1731696035037,23.83888359,210.18,210.11,23.93255821]
[1731696035244,4.2813,210.22,210.15,23.83888359]
[1731696035436,4.2813,210.22,210.11,0.09367462]
[1731696035744,23.83888359,210.21,210.14,47.74125759]
[1731696035945,23.83888359,210.22,210.16,23.902374]
[1731696036124,23.83888359,210.21,210.16,0.12549]
[1731696036523,23.83888359,210.21,210.15,5.00928]
[1731696037041,23.83888359,210.21,210.16,23.776884]
[1731696037539,23.83888359,210.22,210.16,23.776884]
[1731696038249,23.83888359,210.24,210.19,0.12549]
[1731696038752,23.83888359,210.23,210.19,0.12549]
[1731696038925,23.83888359,210.22,210.18,23.776884]
[1731696039648,23.83888359,210.24,210.18,23.776884]
[1731696039949,23.83888359,210.23,210.19,0.12549]
[1731696040526,23.83888359,210.24,210.19,0.12549]
[1731696040730,23.83888359,210.26,210.21,0.12549]
[1731696040936,23.83888359,210.27,210.21,0.12549]
[1731696041247,23.83888359,210.25,210.2,23.776884]
[1731696041432,23.83888359,210.25,210.19,24.027864]
[1731696041746,23.83888359,210.22,210.19,23.902374]
[1731696041947,23.83888359,210.25,210.19,23.902374]
[1731696042135,23.83888359,210.26,210.19,47.74125759]
[1731696042751,23.83888359,210.24,210.19,23.902374]
[1731696043340,23.83888359,210.23,210.19,23.902374]
[1731696044246,23.83888359,210.22,210.19,23.776884]
[1731696044434,4.2807,210.25,210.16,0.12549]
[1731696044435,23.83888359,210.2,210.16,0.12549]
[1731696044636,23.83888359,210.2,210.16,23.902374]
[1731696045742,23.83888359,210.21,210.16,23.902374]
[1731696047052,23.83888359,210.21,210.16,28.660574]
[1731696047964,23.83888359,210.18,210.15,23.902374]
[1731696048141,23.83888359,210.19,210.15,23.902374]
[1731696048647,23.83888359,210.17,210.14,23.776884]
[1731696049149,23.83888359,210.16,210.14,23.776884]
[1731696050728,23.83888359,210.17,210.14,23.776884]
[1731696050936,23.83888359,210.2,210.15,0.12549]
[1731696051238,23.83888359,210.22,210.16,23.83888359]
[1731696051561,23.83888359,210.22,210.17,23.776884]
[1731696052056,23.83888359,210.22,210.16,47.61576759]
[1731696052352,23.83888359,210.22,210.16,23.776884]
[1731696052735,23.83888359,210.22,210.16,28.535084]
[1731696053062,28.11948359,210.25,210.18,47.61576759]
[1731696053348,28.11948359,210.25,210.18,23.776884]
[1731696053349,23.83888359,210.24,210.18,23.776884]
[1731696053554,28.11948359,210.25,210.18,23.83888359]
[1731696053956,23.83888359,210.28,210.22,23.776884]
[1731696054142,23.83888359,210.29,210.22,23.83888359]
[1731696054343,4.28,210.28,210.23,23.776884]
[1731696054545,23.83888359,210.3,210.24,0.12549]
[1731696054748,4.2789,210.33,210.27,23.776884]
[1731696055340,28.11778359,210.33,210.27,23.776884]
[1731696056753,28.11808359,210.32,210.27,23.776884]
[1731696056957,23.83888359,210.28,210.23,4.7565]
[1731696057249,4.2792,210.32,210.24,24.027864]
[1731696057250,23.83888359,210.3,210.24,24.027864]
[1731696057665,23.83888359,210.29,210.24,24.027864]
[1731696058041,23.83888359,210.28,210.24,23.776884]
[1731696058739,23.83888359,210.29,210.24,23.776884]
[1731696058946,23.83888359,210.29,210.24,28.533284]
[1731696059635,23.83888359,210.29,210.24,23.776884]
[1731696060258,23.83888359,210.3,210.24,28.533184]
[1731696060560,23.83888359,210.29,210.24,28.533184]
[1731696061340,23.83888359,210.29,210.24,23.776884]
[1731696061860,23.83888359,210.3,210.24,28.533284]
[1731696062844,23.83888359,210.31,210.26,0.09367462]
[1731696063045,23.83888359,210.36,210.29,47.74125759]
[1731696063243,23.83888359,210.36,210.3,23.902374]
[1731696064065,23.83888359,210.35,210.3,23.776884]
[1731696064267,23.83888359,210.32,210.28,23.776884]
[1731696064770,23.83888359,210.3,210.28,23.776884]
[1731696065140,23.83888359,210.29,210.23,11.8915]
[1731696065340,23.83888359,210.26,210.21,21.1448]
[1731696065547,23.83888359,210.27,210.22,0.09367462]
[1731696065753,23.83888359,210.28,210.22,0.09367462]
[1731696066143,23.83888359,210.29,210.23,4.7566]
[1731696066339,23.83888359,210.32,210.25,23.83888359]
[1731696066547,4.2785,210.35,210.23,16.6483]
[1731696066548,4.2785,210.35,210.29,47.74125759]
[1731696066754,4.2785,210.35,210.29,23.83888359]
[1731696066962,4.2785,210.35,210.3,23.776884]
[1731696068659,23.83888359,210.37,210.31,0.12549]
[1731696068863,23.83888359,210.38,210.31,24.08986359]
[1731696069052,23.83888359,210.38,210.32,23.776884]
[1731696069249,28.11678359,210.39,210.33,0.12549]
[1731696069452,28.11638359,210.41,210.34,23.83888359]
[1731696069749,28.11638359,210.41,210.35,23.776884]
[1731696069953,23.83888359,210.39,210.35,23.776884]
[1731696070165,23.83888359,210.41,210.35,23.776884]
[1731696070362,23.83888359,210.42,210.36,0.25098]
[1731696071263,23.83888359,210.42,210.36,5.00458]
[1731696071450,23.83888359,210.42,210.37,23.776884]
[1731696071652,28.11548359,210.45,210.38,0.25098]
[1731696072149,23.83888359,210.43,210.38,0.25098]
[1731696072648,23.83888359,210.44,210.38,0.25098]
[1731696072851,0.4599052,210.46,210.4,24.027864]
[1731696073268,24.29878879,210.46,210.4,24.027864]
[1731696073846,24.29878879,210.46,210.4,28.780664]
[1731696074067,23.83888359,210.44,210.4,23.776884]
[1731696074257,23.83888359,210.44,210.39,23.776884]
[1731696075360,23.83888359,210.4,210.34,11.8853]
[1731696075676,23.83888359,210.38,210.32,0.09367462]
[1731696075849,23.83888359,210.41,210.34,23.83888359]
[1731696076264,23.83888359,210.4,210.34,0.09367462]
[1731696076467,23.83888359,210.38,210.31,56.72078359]
[1731696076769,23.83888359,210.42,210.36,23.902374]
[1731696077357,23.83888359,210.43,210.37,0.12549]
[1731696077563,23.83888359,210.43,210.36,52.49485759]
[1731696077564,23.83888359,210.43,210.38,0.12549]
[1731696077765,4.2767,210.45,210.38,23.776884]
[1731696077766,23.83888359,210.39,210.38,23.776884]
[1731696077969,23.83888359,210.4,210.36,23.902374]
[1731696078167,4.2767,210.45,210.37,0.21916462]
[1731696078354,0.4599052,210.46,210.4,23.902374]
[1731696078558,0.4599052,210.46,210.44,23.776884]
[1731696078764,0.4599052,210.46,210.44,47.61576759]
[1731696079069,0.4599052,210.46,210.45,23.902374]
[1731696079468,0.4599052,210.46,210.45,0.12549]
[1731696080468,0.4599052,210.46,210.43,23.776884]
[1731696082175,0.4599052,210.46,210.45,23.83888359]
[1731696082482,0.4599052,210.46,210.45,47.74125759]
[1731696083077,0.4599052,210.46,210.45,47.86674759]
[1731696083378,0.4599052,210.46,210.45,47.96042221]
[1731696083577,0.4599052,210.46,210.45,67.96042221]
[1731696084076,0.4599052,210.46,210.45,72.71212221]
[1731696084280,0.4599052,210.46,210.45,78.74752221]
[1731696084980,0.4599052,210.46,210.45,78.84752221]
[1731696085185,0.4599052,210.46,210.45,78.74752221]
[1731696087563,0.4599052,210.46,210.45,78.84752221]
[1731696087966,144.7,210.49,210.45,78.84752221]
[1731696088176,144.7,210.49,210.48,67.96042221]
[1731696088479,23.83888359,210.61,210.51,0.34465462]
[1731696088779,23.83888359,210.64,210.57,47.74125759]
[1731696089158,23.83888359,210.66,210.59,23.83888359]
[1731696089389,28.11108359,210.66,210.58,0.21916462]
[1731696089560,28.11108359,210.66,210.59,23.96437359]
[1731696089883,23.83888359,210.64,210.59,0.12549]
[1731696090182,23.83888359,210.65,210.59,23.902374]
[1731696090364,23.83888359,210.65,210.59,28.650874]
[1731696090561,23.83888359,210.64,210.59,28.650874]
[1731696092386,23.83888359,210.61,210.56,11.8725]
[1731696092692,119.93521641,210.53,210.52,59.456064]
[1731696092875,28.11138359,210.65,210.53,0.09367462]
[1731696093186,4.2725,210.65,210.53,0.09367462]
[1731696093491,14.9537,210.65,210.47,23.7563]
[1731696093778,6.1787,210.6,210.46,16.4501]
[1731696093981,0.1,210.57,210.43,16.6319]
[1731696094178,23.83888359,210.47,210.43,16.6319]
[1731696094388,23.83888359,210.47,210.44,0.09367462]
[1731696094571,23.83888359,210.55,210.47,0.09367462]
[1731696094925,15.8137,210.64,210.5,0.09367462]
[1731696095191,4.7476,210.63,210.5,0.09367462]
[1731696095362,4.7476,210.63,210.51,24.027864]
[1731696095556,0.2,210.6,210.43,22.7358]
[1731696095784,0.1,210.58,210.43,22.7358]
[1731696096278,0.1,210.57,210.44,0.09367462]
[1731696096485,16.0996,210.55,210.43,11.88]
[1731696096671,23.83888359,210.47,210.43,11.88]
[1731696096864,23.83888359,210.48,210.43,11.88]
[1731696097265,23.83888359,210.5,210.44,0.09367462]
[1731696097481,23.83888359,210.48,210.43,16.6321]
[1731696097662,23.83888359,210.48,210.45,0.12549]
[1731696097861,23.83888359,210.51,210.45,0.12549]
[1731696098267,23.83888359,210.5,210.45,0.12549]
[1731696098466,23.83888359,210.49,210.44,28.654074]
[1731696098682,23.83888359,210.48,210.44,23.902374]
[1731696098883,23.83888359,210.49,210.44,23.902374]
[1731696099917,23.83888359,210.52,210.48,0.25098]
[1731696100280,23.83888359,210.53,210.48,0.25098]
[1731696100602,23.83888359,210.56,210.51,23.902374]
[1731696100796,23.83888359,210.57,210.52,0.100444]
[1731696101182,28.58768359,210.58,210.52,0.100444]
[1731696101397,23.83888359,210.58,210.52,23.93932759]
[1731696101584,23.83888359,210.57,210.52,0.100444]
[1731696102197,23.83888359,210.55,210.52,0.100444]
[1731696102397,23.83888359,210.54,210.5,23.776884]
[1731696102604,4.7488,210.58,210.5,23.776884]
[1731696102605,23.83888359,210.53,210.5,23.776884]
[1731696102897,23.83888359,210.53,210.51,0.12549]
[1731696103611,23.83888359,210.55,210.51,0.12549]
[1731696103787,23.83888359,210.57,210.51,0.21916462]
[1731696103982,23.83888359,210.58,210.53,24.12153862]
[1731696105190,23.83888359,210.54,210.5,4.7504]
[1731696105495,23.83888359,210.54,210.51,23.902374]
[1731696105804,23.83888359,210.55,210.51,23.902374]
[1731696105983,23.83888359,210.55,210.52,0.09367462]
[1731696106188,23.83888359,210.59,210.54,0.21916462]
[1731696106592,23.83888359,210.59,210.55,0.12549]
[1731696107511,23.83888359,210.59,210.55,23.902374]
[1731696107690,4.7482,210.61,210.55,4.87489]
[1731696107691,23.83888359,210.6,210.55,4.87489]
[1731696107887,23.83888359,210.62,210.57,0.12549]
[1731696108087,23.83888359,210.65,210.59,0.12549]
[1731696108293,23.83888359,210.65,210.59,0.25098]
[1731696109088,23.83888359,210.65,210.59,24.027864]
[1731696109287,23.83888359,210.65,210.59,28.776364]
[1731696110287,0.4599052,210.67,210.62,0.09367462]
[1731696110495,0.4599052,210.67,210.63,0.12549]
[1731696110711,0.4599052,210.67,210.63,23.902374]
[1731696111084,0.4599052,210.67,210.63,0.12549]
[1731696111687,0.4599052,210.67,210.63,4.99858]
[1731696111902,0.4599052,210.67,210.64,23.776884]
[1731696112912,0.4599052,210.67,210.65,0.12549]
[1731696114311,0.4599052,210.67,210.66,23.902374]
[1731696114614,24.29878879,210.67,210.63,11.8691]
[1731696114920,24.29878879,210.67,210.64,24.027864]
[1731696115100,24.29878879,210.67,210.6,39.05518359]
[1731696115101,23.83888359,210.65,210.61,4.7479]
[1731696115300,23.83888359,210.65,210.6,15.2163]
[1731696115490,23.83888359,210.63,210.59,16.6196]
[1731696115690,23.83888359,210.66,210.6,0.09367462]
[1731696115896,24.29878879,210.67,210.6,23.93255821]
[1731696116100,0.4599052,210.67,210.62,0.09367462]
[1731696116417,0.4599052,210.67,210.62,23.93255821]
[1731696116588,0.4599052,210.67,210.64,23.93255821]
[1731696116922,0.4599052,210.67,210.64,24.12153862]
[1731696117296,0.4599052,210.67,210.64,0.34465462]
[1731696117629,0.4599052,210.67,210.65,23.776884]
[1731696117807,0.4599052,210.67,210.66,0.12549]
[1731696118710,0.4599052,210.67,210.66,23.902374]
[1731696119814,24.29878879,210.67,210.6,23.776884]
[1731696120117,23.83888359,210.65,210.6,23.776884]
[1731696120617,0.4599052,210.67,210.61,23.93255821]
[1731696120914,0.4599052,210.67,210.6,28.524984]
[1731696120915,0.4599052,210.67,210.63,24.12153862]
[1731696121090,24.29878879,210.67,210.63,24.12153862]
[1731696121291,23.83888359,210.65,210.63,23.776884]
[1731696121486,23.83888359,210.65,210.61,24.027864]
[1731696121721,23.83888359,210.66,210.61,4.99888]
[1731696122018,29.04548879,210.67,210.62,23.776884]
[1731696122216,0.4599052,210.67,210.63,0.34465462]
[1731696122390,0.4599052,210.67,210.63,24.18353821]
[1731696122589,0.4599052,210.67,210.65,0.34465462]
[1731696123912,0.4599052,210.67,210.66,28.86843862]
[1731696125090,0.4599052,210.67,210.66,52.70732221]
[1731696125706,0.4599052,210.67,210.66,72.70732221]
[1731696128824,0.4599052,210.67,210.66,52.70732221]
[1731696129121,0.4599052,210.67,210.66,72.70732221]
[1731696131197,0.4599052,210.67,210.66,79.15022221]
[1731696132521,0.4599052,210.67,210.66,79.25022221]
[1731696133728,0.4599052,210.67,210.66,79.35022221]
[1731696134403,0.4599052,210.67,210.66,79.25022221]
[1731696134602,0.4599052,210.67,210.66,79.35022221]
[1731696135528,23.83888359,210.83,210.73,0.21916462]
[1731696135819,23.83888359,210.87,210.81,0.09367462]
[1731696136012,23.83888359,210.88,210.82,24.12153862]
[1731696136211,23.83888359,210.88,210.82,47.96042221]
[1731696136415,0.4599052,210.89,210.82,47.96042221]
[1731696136416,24.29878879,210.89,210.82,47.96042221]
[1731696136610,23.83888359,210.88,210.82,47.96042221]
[1731696137324,24.29878879,210.89,210.82,47.96042221]
[1731696137709,0.4599052,210.89,210.86,0.21916462]
[1731696137917,24.29878879,210.89,210.86,24.12153862]
[1731696138433,0.4599052,210.89,210.86,24.12153862]
[1731696138928,0.4599052,210.89,210.86,47.96042221]
[1731696139131,0.4599052,210.89,210.88,0.09367462]
[1731696139317,0.4599052,210.89,210.88,24.12153862]
[1731696139713,0.4599052,210.89,210.88,5.08665462]
[1731696140013,0.4599052,210.89,210.88,28.86353862]
[1731696140214,0.4599052,210.89,210.88,52.70242221]
[1731696140421,0.4599052,210.89,210.88,28.86353862]
[1731696141221,0.4599052,210.89,210.88,72.70242221]
[1731696146530,0.4599052,210.89,210.88,48.86353862]
[1731696147835,15.29495531,210.89,210.86,4.7423]
[1731696148017,14.83505011,210.87,210.85,11.8567]
[1731696148217,14.83505011,210.88,210.85,16.5994]
[1731696148635,14.83505011,210.87,210.86,0.09367462]
[1731696148822,23.749866,210.87,210.86,0.09367462]
[1731696149213,23.749866,210.87,210.82,4.7431]
[1731696149537,23.749866,210.86,210.83,0.12549]
[1731696149910,5.2017052,210.89,210.8,35.608966]
[1731696149911,23.749866,210.85,210.8,11.8591]
[1731696150108,23.749866,210.85,210.8,16.6027]
[1731696150537,23.749866,210.82,210.8,16.6027]
[1731696150843,23.749866,210.81,210.76,4.7445]
[1731696151025,23.749866,210.8,210.76,4.7445]
[1731696151217,23.749866,210.77,210.7,11.8647]
[1731696151421,23.749866,210.74,210.72,4.7455]
[1731696151822,6.3434,210.81,210.73,0.09367462]
[1731696152136,23.749866,210.74,210.66,4.7468]
[1731696152442,23.749866,210.69,210.66,4.7468]
[1731696152811,23.749866,210.68,210.66,0.09367462]
[1731696153016,23.749866,210.7,210.66,0.09367462]
[1731696153428,23.749866,210.73,210.67,23.749866]
[1731696153635,23.749866,210.72,210.65,40.364666]
[1731696153848,23.749866,210.72,210.66,0.09367462]
[1731696154021,23.749866,210.73,210.66,23.84354062]
[1731696154213,23.749866,210.73,210.68,0.09367462]
[1731696154419,23.749866,210.72,210.68,0.09367462]
[1731696154715,23.749866,210.72,210.69,0.12549]
[1731696154923,4.7438,210.8,210.69,0.12549]
[1731696154924,23.749866,210.71,210.69,0.12549]